[Event "Late-Titled-Tuesday-Blitz-September-05-2023"]
[Site "Chess.com"]
[Date "2023.09.05"]
[Round "11"]
[White "ketster"]
[Black "venturov"]
[Result "0-1"]
[WhiteElo "2517"]
[BlackElo "2473"]
[TimeControl "180+1"]
[EndTime "16:03:32 PDT"]
[Termination "venturov won on time"]

1. Na3 {[%clk 0:02:22.8]} 1... g6 {[%clk 0:02:51.1]} 2. c3 {[%clk 0:02:22.9]}
2... Bg7 {[%clk 0:02:51.6]} 3. d4 {[%clk 0:02:23.5]} 3... f5 {[%clk 0:02:52.3]}
4. e4 {[%clk 0:02:23.2]} 4... fxe4 {[%clk 0:02:51.8]} 5. d5 {[%clk 0:02:23.7]}
5... Nf6 {[%clk 0:02:52.1]} 6. Ne2 {[%clk 0:02:21.9]} 6... O-O {[%clk
0:02:52.5]} 7. Ng3 {[%clk 0:02:22.5]} 7... c6 {[%clk 0:02:52.7]} 8. Bc4 {[%clk
0:02:20.6]} 8... cxd5 {[%clk 0:02:51.8]} 9. Bxd5+ {[%clk 0:02:20.6]} 9... e6
{[%clk 0:02:49.4]} 10. Bxe4 {[%clk 0:02:20]} 10... Nxe4 {[%clk 0:02:49.7]} 11.
Nxe4 {[%clk 0:02:20.9]} 11... d5 {[%clk 0:02:50.2]} 12. Ng5 {[%clk 0:02:17.1]}
12... Nc6 {[%clk 0:02:48.7]} 13. O-O {[%clk 0:02:15.7]} 13... e5 {[%clk
0:02:48.7]} 14. Nc2 {[%clk 0:02:13]} 14... e4 {[%clk 0:02:47.8]} 15. c4 {[%clk
0:01:57.8]} 15... dxc4 {[%clk 0:02:29.4]} 16. Qxd8 {[%clk 0:01:49.3]} 16... Rxd8
{[%clk 0:02:29.7]} 17. Nxe4 {[%clk 0:01:42.4]} 17... Bf5 {[%clk 0:02:30.3]} 18.
f3 {[%clk 0:01:39.7]} 18... Nd4 {[%clk 0:02:28.2]} 19. Ne3 {[%clk 0:01:33.7]}
19... Ne2+ {[%clk 0:02:25.9]} 20. Kf2 {[%clk 0:01:33.8]} 20... Nxc1 {[%clk
0:02:22.1]} 21. Raxc1 {[%clk 0:01:34.5]} 21... Bxe4 {[%clk 0:02:20.4]} 22. fxe4
{[%clk 0:01:35.4]} 22... Rd2+ {[%clk 0:02:17.3]} 23. Kf3 {[%clk 0:01:35.8]}
23... Rxb2 {[%clk 0:02:13.7]} 24. Nxc4 {[%clk 0:01:31.9]} 24... Rxa2 {[%clk
0:02:11.6]} 25. e5 {[%clk 0:01:30.8]} 25... b5 {[%clk 0:02:08.4]} 26. Nd6 {[%clk
0:01:30.6]} 26... Rf8+ {[%clk 0:01:55.7]} 27. Ke4 {[%clk 0:01:30.1]} 27... Re2+
{[%clk 0:01:54.3]} 28. Kd3 {[%clk 0:01:29]} 28... Rxe5 {[%clk 0:01:53]} 29.
Rxf8+ {[%clk 0:01:29.3]} 29... Bxf8 {[%clk 0:01:52.6]} 30. Rc8 {[%clk
0:01:29.5]} 30... Rd5+ {[%clk 0:01:51.9]} 31. Ke4 {[%clk 0:01:29.1]} 31... Rxd6
{[%clk 0:01:52.8]} 32. Rxf8+ {[%clk 0:01:29.3]} 32... Kxf8 {[%clk 0:01:52.4]}
33. Ke5 {[%clk 0:01:30.2]} 33... Ke7 {[%clk 0:01:52.9]} 34. g4 {[%clk
0:01:31.1]} 34... Rb6 {[%clk 0:01:53.2]} 35. g5 {[%clk 0:01:32]} 35... b4 {[%clk
0:01:53.6]} 36. h4 {[%clk 0:01:32.9]} 36... b3 {[%clk 0:01:54]} 37. h5 {[%clk
0:01:33.8]} 37... b2 {[%clk 0:01:54.1]} 38. h6 {[%clk 0:01:34.7]} 38... b1=Q
{[%clk 0:01:53.3]} 0-1

[Event "Late-Titled-Tuesday-Blitz-September-05-2023"]
[Site "Chess.com"]
[Date "2023.09.05"]
[Round "11"]
[White "jorquerino"]
[Black "Chessbard1972"]
[Result "0-1"]
[WhiteElo "2341"]
[BlackElo "2489"]
[TimeControl "180+1"]
[EndTime "16:03:32 PDT"]
[Termination "Chessbard1972 won by resignation"]

1. e4 {[%clk 0:02:55.7]} 1... e5 {[%clk 0:02:58.8]} 2. Nc3 {[%clk 0:02:54.7]}
2... Nc6 {[%clk 0:02:55.9]} 3. g3 {[%clk 0:02:53.1]} 3... Bc5 {[%clk 0:02:54.2]}
4. Bg2 {[%clk 0:02:53]} 4... h5 {[%clk 0:02:54.3]} 5. h3 {[%clk 0:02:51.5]} 5...
h4 {[%clk 0:02:52.5]} 6. g4 {[%clk 0:02:51.1]} 6... Nge7 {[%clk 0:02:51.9]} 7.
d3 {[%clk 0:02:45.2]} 7... Ng6 {[%clk 0:02:50.3]} 8. Be3 {[%clk 0:02:44]} 8...
d6 {[%clk 0:02:47.1]} 9. Na4 {[%clk 0:02:33.2]} 9... Bxe3 {[%clk 0:02:43.4]} 10.
fxe3 {[%clk 0:02:32.7]} 10... Qg5 {[%clk 0:02:41.2]} 11. Qd2 {[%clk 0:02:32]}
11... Bd7 {[%clk 0:02:38.1]} 12. Nf3 {[%clk 0:02:28.1]} 12... Qe7 {[%clk
0:02:37.6]} 13. Nc3 {[%clk 0:02:21.6]} 13... O-O-O {[%clk 0:02:35.9]} 14. O-O-O
{[%clk 0:02:20.9]} 14... Be6 {[%clk 0:02:35]} 15. Nd5 {[%clk 0:02:19.5]} 15...
Qd7 {[%clk 0:02:32.5]} 16. Ng5 {[%clk 0:02:17.2]} 16... Nce7 {[%clk 0:02:29.1]}
17. Nxe6 {[%clk 0:02:07.2]} 17... fxe6 {[%clk 0:02:26.3]} 18. Nc3 {[%clk
0:02:01.7]} 18... Kb8 {[%clk 0:02:25.7]} 19. Rdf1 {[%clk 0:02:00.8]} 19... Rdf8
{[%clk 0:02:25.3]} 20. d4 {[%clk 0:01:43.9]} 20... a6 {[%clk 0:02:16.9]} 21. b3
{[%clk 0:01:40.8]} 21... exd4 {[%clk 0:02:09.6]} 22. exd4 {[%clk 0:01:39.5]}
22... e5 {[%clk 0:02:08.2]} 23. Nd5 {[%clk 0:01:24.6]} 23... Nxd5 {[%clk
0:02:05.3]} 24. exd5 {[%clk 0:01:24.3]} 24... Nf4 {[%clk 0:02:03.8]} 25. dxe5
{[%clk 0:01:16.4]} 25... dxe5 {[%clk 0:02:03.4]} 26. Be4 {[%clk 0:01:14.4]}
26... g5 {[%clk 0:02:02]} 27. c4 {[%clk 0:01:11.6]} 27... Qd6 {[%clk 0:02:00.8]}
28. Kb2 {[%clk 0:01:09.7]} 28... c6 {[%clk 0:01:58.1]} 29. Rd1 {[%clk
0:01:07.6]} 29... cxd5 {[%clk 0:01:57.3]} 30. Bxd5 {[%clk 0:01:06.9]} 30... Rd8
{[%clk 0:01:56.7]} 31. Qe3 {[%clk 0:00:57.5]} 31... Qc7 {[%clk 0:01:48.4]} 32.
Bf3 {[%clk 0:00:51.5]} 32... Rhe8 {[%clk 0:01:39.7]} 33. Rhe1 {[%clk 0:00:36.8]}
33... Rxd1 {[%clk 0:01:37.6]} 34. Bxd1 {[%clk 0:00:33.1]} 34... e4 {[%clk
0:01:37.1]} 35. Bc2 {[%clk 0:00:32.1]} 35... Qe5+ {[%clk 0:01:36.3]} 36. Kb1
{[%clk 0:00:28.5]} 36... Ng2 {[%clk 0:01:31.7]} 37. Qxe4 {[%clk 0:00:24.1]}
37... Nxe1 {[%clk 0:01:31.3]} 0-1

[Event "Late-Titled-Tuesday-Blitz-September-05-2023"]
[Site "Chess.com"]
[Date "2023.09.05"]
[Round "11"]
[White "Dewarfd"]
[Black "Nekoo04"]
[Result "1-0"]
[WhiteElo "2207"]
[BlackElo "2273"]
[TimeControl "180+1"]
[EndTime "16:03:39 PDT"]
[Termination "Dewarfd won on time"]

1. d4 {[%clk 0:02:59.6]} 1... Nf6 {[%clk 0:02:58.3]} 2. e3 {[%clk 0:02:57.5]}
2... d5 {[%clk 0:02:57.3]} 3. Nf3 {[%clk 0:02:57.7]} 3... Bg4 {[%clk 0:02:39.4]}
4. h3 {[%clk 0:02:54.9]} 4... Bh5 {[%clk 0:02:39.3]} 5. g4 {[%clk 0:02:52.8]}
5... Bg6 {[%clk 0:02:37.3]} 6. Ne5 {[%clk 0:02:52.7]} 6... Nbd7 {[%clk
0:02:32.3]} 7. h4 {[%clk 0:02:52.1]} 7... h5 {[%clk 0:02:06.2]} 8. Nxg6 {[%clk
0:02:50.7]} 8... fxg6 {[%clk 0:02:07.1]} 9. Bd3 {[%clk 0:02:49.2]} 9... Ne4
{[%clk 0:01:44.6]} 10. Qf3 {[%clk 0:02:37.3]} 10... hxg4 {[%clk 0:00:57.7]} 11.
Bxe4 {[%clk 0:02:35]} 11... dxe4 {[%clk 0:00:51.2]} 12. Qxe4 {[%clk 0:02:34.1]}
12... Kf7 {[%clk 0:00:51.6]} 13. Qxg4 {[%clk 0:02:13.7]} 13... Nf6 {[%clk
0:00:47.9]} 14. Qe2 {[%clk 0:02:12.9]} 14... g5 {[%clk 0:00:42.3]} 15. h5 {[%clk
0:02:00.3]} 15... Qd5 {[%clk 0:00:41]} 16. f3 {[%clk 0:01:56.3]} 16... g4 {[%clk
0:00:30.7]} 17. e4 {[%clk 0:01:48.6]} 17... Qxd4 {[%clk 0:00:17.1]} 18. fxg4
{[%clk 0:01:41.2]} 18... e5 {[%clk 0:00:06.7]} 19. Nc3 {[%clk 0:01:36.7]} 19...
Bb4 {[%clk 0:00:06.4]} 20. Bd2 {[%clk 0:01:34.5]} 20... Bxc3 {[%clk 0:00:02.6]}
21. Bxc3 {[%clk 0:01:30.7]} 21... Qxe4 {[%clk 0:00:03.2]} 22. Qxe4 {[%clk
0:01:26.2]} 22... Nxe4 {[%clk 0:00:04.1]} 23. Rf1+ {[%clk 0:01:21.8]} 23... Ke6
{[%clk 0:00:01.2]} 24. O-O-O {[%clk 0:01:21.6]} 24... Nxc3 {[%clk 0:00:01]} 25.
bxc3 {[%clk 0:01:21.4]} 1-0

[Event "Late-Titled-Tuesday-Blitz-September-05-2023"]
[Site "Chess.com"]
[Date "2023.09.05"]
[Round "11"]
[White "tteshan"]
[Black "traack"]
[Result "1-0"]
[WhiteElo "2554"]
[BlackElo "2368"]
[TimeControl "180+1"]
[EndTime "16:03:43 PDT"]
[Termination "tteshan won by resignation"]

1. e4 {[%clk 0:03:00.9]} 1... c5 {[%clk 0:02:59.1]} 2. Nf3 {[%clk 0:03:00.8]}
2... e6 {[%clk 0:02:57.6]} 3. c3 {[%clk 0:03:01.1]} 3... Nf6 {[%clk 0:02:56.7]}
4. e5 {[%clk 0:03:01.3]} 4... Nd5 {[%clk 0:02:56]} 5. Bc4 {[%clk 0:03:01.9]}
5... Nb6 {[%clk 0:02:51.6]} 6. Bb3 {[%clk 0:03:01.4]} 6... c4 {[%clk 0:02:52.1]}
7. Bc2 {[%clk 0:03:01.5]} 7... d5 {[%clk 0:02:52.3]} 8. O-O {[%clk 0:02:58.7]}
8... Be7 {[%clk 0:02:52.4]} 9. d4 {[%clk 0:02:57.3]} 9... cxd3 {[%clk
0:02:52.1]} 10. Qxd3 {[%clk 0:02:57]} 10... Nc6 {[%clk 0:02:52.1]} 11. Bf4
{[%clk 0:02:53]} 11... Bd7 {[%clk 0:02:52.1]} 12. Nbd2 {[%clk 0:02:52.3]} 12...
Rc8 {[%clk 0:02:51]} 13. Rfe1 {[%clk 0:02:51.2]} 13... h6 {[%clk 0:02:47.9]} 14.
Nf1 {[%clk 0:02:46]} 14... g5 {[%clk 0:02:47.7]} 15. Bg3 {[%clk 0:02:41.3]}
15... Nc4 {[%clk 0:02:48]} 16. b3 {[%clk 0:02:35.2]} 16... Na3 {[%clk
0:02:45.5]} 17. Bd1 {[%clk 0:02:34.9]} 17... Na5 {[%clk 0:02:40.9]} 18. Nd4
{[%clk 0:02:32.2]} 18... Qc7 {[%clk 0:02:39.7]} 19. Rc1 {[%clk 0:02:29.5]} 19...
a6 {[%clk 0:02:39.6]} 20. Ne3 {[%clk 0:02:24.4]} 20... Nb5 {[%clk 0:02:39.5]}
21. Nxb5 {[%clk 0:02:14.5]} 21... Bxb5 {[%clk 0:02:39.1]} 22. Qd2 {[%clk
0:02:14.7]} 22... Ba3 {[%clk 0:02:37.4]} 23. Rc2 {[%clk 0:02:12.5]} 23... h5
{[%clk 0:02:24.5]} 24. Nxd5 {[%clk 0:02:03.8]} 24... exd5 {[%clk 0:02:13.7]} 25.
e6 {[%clk 0:02:03.7]} 25... Bd6 {[%clk 0:02:08.8]} 26. exf7+ {[%clk 0:02:02.3]}
26... Kf8 {[%clk 0:02:09.4]} 27. Qxg5 {[%clk 0:01:49.7]} 27... h4 {[%clk
0:01:59.5]} 28. Bxd6+ {[%clk 0:01:41.4]} 28... Qxd6 {[%clk 0:01:59.4]} 29. Bg4
{[%clk 0:01:41.3]} 29... Rc7 {[%clk 0:01:55.2]} 30. Re6 {[%clk 0:01:25.4]} 30...
Re7 {[%clk 0:01:46.7]} 31. Qf6 {[%clk 0:00:57.4]} 31... Rh7 {[%clk 0:01:36.7]}
32. h3 {[%clk 0:00:49.6]} 32... Rxe6 {[%clk 0:01:34.4]} 33. Bxe6 {[%clk
0:00:49.9]} 33... Bd7 {[%clk 0:01:03.9]} 34. Qd8+ {[%clk 0:00:49.2]} 34... Kg7
{[%clk 0:01:02.5]} 35. Qg8+ {[%clk 0:00:42.8]} 35... Kh6 {[%clk 0:01:02.2]} 36.
f8=Q+ {[%clk 0:00:40.3]} 36... Qxf8 {[%clk 0:00:59.9]} 37. Qxf8+ {[%clk
0:00:41.2]} 1-0

[Event "Late-Titled-Tuesday-Blitz-September-05-2023"]
[Site "Chess.com"]
[Date "2023.09.05"]
[Round "11"]
[White "dosto07"]
[Black "TC2304"]
[Result "1-0"]
[WhiteElo "2499"]
[BlackElo "2346"]
[TimeControl "180+1"]
[EndTime "16:03:44 PDT"]
[Termination "dosto07 won by resignation"]

1. e4 {[%clk 0:03:00.9]} 1... e6 {[%clk 0:03:00.4]} 2. d4 {[%clk 0:02:59]} 2...
d5 {[%clk 0:03:01.1]} 3. Nd2 {[%clk 0:02:59.5]} 3... dxe4 {[%clk 0:03:01.7]} 4.
Nxe4 {[%clk 0:02:59.4]} 4... Bd7 {[%clk 0:03:02.6]} 5. Nf3 {[%clk 0:02:59.1]}
5... Bc6 {[%clk 0:03:03.3]} 6. Bd3 {[%clk 0:02:59.7]} 6... Nd7 {[%clk 0:03:03]}
7. O-O {[%clk 0:02:59.2]} 7... Ngf6 {[%clk 0:03:03.6]} 8. Ng3 {[%clk 0:02:57.5]}
8... Be7 {[%clk 0:03:04.1]} 9. b3 {[%clk 0:02:56.6]} 9... O-O {[%clk 0:03:03.2]}
10. Bb2 {[%clk 0:02:56.9]} 10... Bxf3 {[%clk 0:02:57.7]} 11. Qxf3 {[%clk
0:02:56.2]} 11... c6 {[%clk 0:02:58.4]} 12. Rfe1 {[%clk 0:02:54.1]} 12... a5
{[%clk 0:02:58]} 13. a3 {[%clk 0:02:51.7]} 13... a4 {[%clk 0:02:57.8]} 14. b4
{[%clk 0:02:49.2]} 14... Qc7 {[%clk 0:02:46.9]} 15. Nf5 {[%clk 0:02:44.9]} 15...
exf5 {[%clk 0:02:37.1]} 16. Rxe7 {[%clk 0:02:44.7]} 16... Nd5 {[%clk 0:02:25.6]}
17. Qxf5 {[%clk 0:02:28.7]} 17... N5f6 {[%clk 0:02:19.8]} 18. d5 {[%clk
0:02:20.5]} 18... Qd6 {[%clk 0:02:12.3]} 19. Bxf6 {[%clk 0:01:52.8]} 19... Nxf6
{[%clk 0:02:08.2]} 20. Rxb7 {[%clk 0:01:49.7]} 20... cxd5 {[%clk 0:01:57.1]} 21.
Rd1 {[%clk 0:01:48.4]} 21... Rac8 {[%clk 0:01:49]} 22. h3 {[%clk 0:01:47.9]}
22... Rc3 {[%clk 0:01:48.7]} 23. Ra7 {[%clk 0:01:30.3]} 23... Rxa3 {[%clk
0:01:48.2]} 24. Ra6 {[%clk 0:01:30.2]} 24... Rxd3 {[%clk 0:01:20.7]} 25. Rxd6
{[%clk 0:01:29.2]} 25... Rxd1+ {[%clk 0:01:20.3]} 26. Kh2 {[%clk 0:01:29.9]}
26... Ra8 {[%clk 0:00:46.5]} 27. Ra6 {[%clk 0:01:18.7]} 27... Re8 {[%clk
0:00:36.4]} 28. Rxf6 {[%clk 0:01:16.7]} 28... g6 {[%clk 0:00:24.9]} 29. Qd7
{[%clk 0:01:13.3]} 29... Rf8 {[%clk 0:00:13.9]} 30. Qxa4 {[%clk 0:01:10.8]}
30... Kg7 {[%clk 0:00:14.1]} 31. Rf3 {[%clk 0:01:08.7]} 1-0

[Event "Late-Titled-Tuesday-Blitz-September-05-2023"]
[Site "Chess.com"]
[Date "2023.09.05"]
[Round "11"]
[White "sjoerd893"]
[Black "CrushingKings"]
[Result "1-0"]
[WhiteElo "2469"]
[BlackElo "2536"]
[TimeControl "180+1"]
[EndTime "16:03:47 PDT"]
[Termination "sjoerd893 won by resignation"]

1. e4 {[%clk 0:03:00.9]} 1... g6 {[%clk 0:02:58]} 2. d4 {[%clk 0:03:00.1]} 2...
Bg7 {[%clk 0:02:58.9]} 3. Nf3 {[%clk 0:02:53.3]} 3... c6 {[%clk 0:02:59.5]} 4.
Nc3 {[%clk 0:02:52]} 4... d5 {[%clk 0:03:00]} 5. e5 {[%clk 0:02:52.2]} 5... f6
{[%clk 0:02:59.7]} 6. Bf4 {[%clk 0:02:50]} 6... Bg4 {[%clk 0:02:59.5]} 7. Be2
{[%clk 0:02:47.7]} 7... Bxf3 {[%clk 0:02:58.8]} 8. Bxf3 {[%clk 0:02:46.8]} 8...
fxe5 {[%clk 0:02:59.4]} 9. Bxe5 {[%clk 0:02:44.3]} 9... Bxe5 {[%clk 0:02:57.2]}
10. dxe5 {[%clk 0:02:45.2]} 10... Nd7 {[%clk 0:02:57.2]} 11. Qd4 {[%clk
0:02:35.5]} 11... Qb6 {[%clk 0:02:34.5]} 12. Qf4 {[%clk 0:02:15.5]} 12... Qc7
{[%clk 0:02:14.2]} 13. O-O {[%clk 0:02:11.5]} 13... Qxe5 {[%clk 0:02:13.8]} 14.
Qb4 {[%clk 0:02:07.6]} 14... O-O-O {[%clk 0:02:00.5]} 15. Rfe1 {[%clk
0:01:52.7]} 15... Qd6 {[%clk 0:02:00.3]} 16. Qd4 {[%clk 0:01:51.6]} 16... e5
{[%clk 0:01:49.7]} 17. Qxa7 {[%clk 0:01:49.5]} 17... Ngf6 {[%clk 0:01:47.7]} 18.
a4 {[%clk 0:01:40.5]} 18... e4 {[%clk 0:01:47.5]} 19. Be2 {[%clk 0:01:36.9]}
19... d4 {[%clk 0:01:30.3]} 20. a5 {[%clk 0:01:28.1]} 20... Qc5 {[%clk
0:01:00.5]} 21. Qxc5 {[%clk 0:01:24.8]} 21... Nxc5 {[%clk 0:01:01.4]} 22. Na4
{[%clk 0:01:25.2]} 22... Nxa4 {[%clk 0:00:59.7]} 23. Rxa4 {[%clk 0:01:26.1]}
23... d3 {[%clk 0:01:00.2]} 24. cxd3 {[%clk 0:01:25.3]} 24... exd3 {[%clk
0:01:00.1]} 25. Bf3 {[%clk 0:01:25.9]} 25... d2 {[%clk 0:00:49.1]} 26. Rd1
{[%clk 0:01:20.1]} 26... Rhe8 {[%clk 0:00:49.3]} 27. Kf1 {[%clk 0:01:20]} 27...
Re5 {[%clk 0:00:47.1]} 28. a6 {[%clk 0:01:09.8]} 28... b5 {[%clk 0:00:47.1]} 29.
a7 {[%clk 0:01:07.7]} 29... Kb7 {[%clk 0:00:28.2]} 30. a8=Q+ {[%clk 0:01:05.5]}
30... Rxa8 {[%clk 0:00:28.4]} 31. Bxc6+ {[%clk 0:01:05.7]} 31... Kxc6 {[%clk
0:00:28.5]} 32. Rxa8 {[%clk 0:01:06.6]} 32... Rd5 {[%clk 0:00:26.8]} 33. Rc8+
{[%clk 0:01:05.1]} 33... Kd7 {[%clk 0:00:25.7]} 34. Rc2 {[%clk 0:01:05.5]} 34...
Ne4 {[%clk 0:00:25]} 35. f3 {[%clk 0:01:06]} 1-0

[Event "Late-Titled-Tuesday-Blitz-September-05-2023"]
[Site "Chess.com"]
[Date "2023.09.05"]
[Round "11"]
[White "DawidCzerw"]
[Black "EsmeraldasAnderson03"]
[Result "1-0"]
[WhiteElo "2498"]
[BlackElo "2417"]
[TimeControl "180+1"]
[EndTime "16:04:06 PDT"]
[Termination "DawidCzerw won on time"]

1. e4 {[%clk 0:03:00.9]} 1... c5 {[%clk 0:02:59.5]} 2. Nf3 {[%clk 0:03:00.5]}
2... d6 {[%clk 0:02:59.9]} 3. d4 {[%clk 0:03:00.6]} 3... cxd4 {[%clk 0:03:00.8]}
4. Nxd4 {[%clk 0:03:01.3]} 4... Nf6 {[%clk 0:03:01.5]} 5. Nc3 {[%clk 0:03:01.7]}
5... a6 {[%clk 0:03:02.2]} 6. h4 {[%clk 0:03:01.9]} 6... e5 {[%clk 0:03:00.6]}
7. Nb3 {[%clk 0:03:01.8]} 7... Be7 {[%clk 0:02:59.3]} 8. Be2 {[%clk 0:03:01.6]}
8... h5 {[%clk 0:02:58.7]} 9. Bg5 {[%clk 0:03:00.8]} 9... Be6 {[%clk 0:02:51.2]}
10. Qd2 {[%clk 0:02:55.8]} 10... Nbd7 {[%clk 0:02:50.7]} 11. O-O-O {[%clk
0:02:53.2]} 11... b5 {[%clk 0:02:51.3]} 12. Nd5 {[%clk 0:02:52.6]} 12... Nxe4
{[%clk 0:02:37.4]} 13. Qe1 {[%clk 0:02:41.6]} 13... Nxg5 {[%clk 0:02:36.2]} 14.
hxg5 {[%clk 0:02:42.5]} 14... Bxg5+ {[%clk 0:02:34.1]} 15. Kb1 {[%clk
0:02:42.6]} 15... g6 {[%clk 0:02:33.3]} 16. g4 {[%clk 0:02:41.8]} 16... h4
{[%clk 0:02:33.1]} 17. f4 {[%clk 0:02:33.9]} 17... exf4 {[%clk 0:02:30.8]} 18.
Bd3 {[%clk 0:02:31.8]} 18... Ne5 {[%clk 0:02:26.5]} 19. Be4 {[%clk 0:02:30.7]}
19... Rc8 {[%clk 0:02:23.1]} 20. Nd4 {[%clk 0:02:28.4]} 20... Bxg4 {[%clk
0:02:18.5]} 21. Rd2 {[%clk 0:02:02.4]} 21... Kf8 {[%clk 0:02:11.6]} 22. Rg2
{[%clk 0:01:57.4]} 22... h3 {[%clk 0:02:08.7]} 23. Bxg6 {[%clk 0:01:49.4]} 23...
fxg6 {[%clk 0:01:50.2]} 24. Rxg4 {[%clk 0:01:47.6]} 24... Nxg4 {[%clk
0:01:51.1]} 25. Ne6+ {[%clk 0:01:47.3]} 25... Kf7 {[%clk 0:01:44.8]} 26. Nxd8+
{[%clk 0:01:46]} 26... Bxd8 {[%clk 0:01:44.2]} 27. Nxf4 {[%clk 0:01:41.8]} 27...
Ne5 {[%clk 0:01:39.7]} 28. Nxh3 {[%clk 0:01:33.6]} 28... Bf6 {[%clk 0:01:36.7]}
29. Nf4 {[%clk 0:01:29.2]} 29... g5 {[%clk 0:01:35]} 30. Nd5 {[%clk 0:01:27.4]}
30... Ke6 {[%clk 0:01:34.1]} 31. Nxf6 {[%clk 0:01:23.3]} 31... Kxf6 {[%clk
0:01:35]} 32. Rf1+ {[%clk 0:01:23.4]} 32... Ke6 {[%clk 0:01:35.4]} 33. b3 {[%clk
0:01:19.1]} 33... g4 {[%clk 0:01:31.2]} 34. Qe4 {[%clk 0:01:18]} 34... Rcf8
{[%clk 0:01:28.3]} 35. Re1 {[%clk 0:01:12.9]} 35... Rhg8 {[%clk 0:01:26.7]} 36.
Rd1 {[%clk 0:01:11.7]} 1-0

[Event "Late-Titled-Tuesday-Blitz-September-05-2023"]
[Site "Chess.com"]
[Date "2023.09.05"]
[Round "11"]
[White "whiteglovethief"]
[Black "Truequitos"]
[Result "1-0"]
[WhiteElo "2506"]
[BlackElo "2439"]
[TimeControl "180+1"]
[EndTime "16:04:07 PDT"]
[Termination "whiteglovethief won by resignation"]

1. d4 {[%clk 0:02:43.5]} 1... Nf6 {[%clk 0:02:59.2]} 2. c4 {[%clk 0:02:43.6]}
2... d6 {[%clk 0:02:59.8]} 3. Nc3 {[%clk 0:02:42.6]} 3... e5 {[%clk 0:02:59.6]}
4. d5 {[%clk 0:02:40.9]} 4... e4 {[%clk 0:02:57.1]} 5. Bg5 {[%clk 0:02:36.1]}
5... Bf5 {[%clk 0:02:47.3]} 6. Qb3 {[%clk 0:02:33.5]} 6... b6 {[%clk 0:02:43.9]}
7. f3 {[%clk 0:02:31.9]} 7... exf3 {[%clk 0:02:39.5]} 8. gxf3 {[%clk 0:02:32.8]}
8... Nbd7 {[%clk 0:02:33.3]} 9. e4 {[%clk 0:02:32]} 9... Bg6 {[%clk 0:02:33.6]}
10. c5 {[%clk 0:02:29.6]} 10... Nxc5 {[%clk 0:02:07]} 11. Bb5+ {[%clk
0:02:27.7]} 11... Ncd7 {[%clk 0:02:07.4]} 12. Qc4 {[%clk 0:02:14.5]} 12... Be7
{[%clk 0:02:00.8]} 13. Bc6 {[%clk 0:02:08]} 13... Rb8 {[%clk 0:01:58.5]} 14.
O-O-O {[%clk 0:02:04]} 14... O-O {[%clk 0:01:53.9]} 15. h4 {[%clk 0:02:04.4]}
15... Ne5 {[%clk 0:01:46.2]} 16. Qe2 {[%clk 0:02:01.2]} 16... Nxc6 {[%clk
0:01:40.3]} 17. dxc6 {[%clk 0:02:02.1]} 17... h6 {[%clk 0:01:40.3]} 18. h5
{[%clk 0:01:49.9]} 18... Bh7 {[%clk 0:01:37.9]} 19. Be3 {[%clk 0:01:40.4]} 19...
Qc8 {[%clk 0:01:20.6]} 20. Qg2 {[%clk 0:01:38.2]} 20... Kh8 {[%clk 0:01:19]} 21.
Nge2 {[%clk 0:01:35.7]} 21... Qa6 {[%clk 0:01:09.4]} 22. Rdg1 {[%clk 0:01:27.7]}
22... Rg8 {[%clk 0:01:08.6]} 23. Nf4 {[%clk 0:01:28]} 23... b5 {[%clk
0:00:45.4]} 24. Ng6+ {[%clk 0:01:25.3]} 24... fxg6 {[%clk 0:00:45.4]} 25. hxg6
{[%clk 0:01:25.7]} 25... Bf8 {[%clk 0:00:30]} 26. gxh7 {[%clk 0:01:25.2]} 26...
Nxh7 {[%clk 0:00:22]} 27. Rxh6 {[%clk 0:01:18.2]} 27... g5 {[%clk 0:00:12.5]}
28. Bd4+ {[%clk 0:01:08.8]} 28... Bg7 {[%clk 0:00:11.1]} 29. Qxg5 {[%clk
0:01:03.5]} 29... Bxd4 {[%clk 0:00:02.7]} 30. Rxh7+ {[%clk 0:01:03.7]} 1-0

[Event "Late-Titled-Tuesday-Blitz-September-05-2023"]
[Site "Chess.com"]
[Date "2023.09.05"]
[Round "11"]
[White "PapaieDudu"]
[Black "Michalczak"]
[Result "0-1"]
[WhiteElo "2297"]
[BlackElo "2494"]
[TimeControl "180+1"]
[EndTime "16:04:09 PDT"]
[Termination "Michalczak won on time"]

1. e4 {[%clk 0:03:00.9]} 1... e5 {[%clk 0:02:59.6]} 2. f4 {[%clk 0:03:01]} 2...
exf4 {[%clk 0:02:57]} 3. Nf3 {[%clk 0:03:01]} 3... g5 {[%clk 0:02:55.1]} 4. Bc4
{[%clk 0:03:00.7]} 4... Bg7 {[%clk 0:02:53.7]} 5. d4 {[%clk 0:02:58]} 5... d6
{[%clk 0:02:51.8]} 6. Nc3 {[%clk 0:02:57.7]} 6... Nc6 {[%clk 0:02:49.3]} 7. h3
{[%clk 0:02:53.6]} 7... h6 {[%clk 0:02:47.4]} 8. b4 {[%clk 0:02:45.4]} 8... Nxb4
{[%clk 0:02:38.9]} 9. Rb1 {[%clk 0:02:45]} 9... Nc6 {[%clk 0:02:37.6]} 10. O-O
{[%clk 0:02:43.2]} 10... Nf6 {[%clk 0:02:22.6]} 11. Qe2 {[%clk 0:02:21.5]} 11...
Qe7 {[%clk 0:02:17]} 12. e5 {[%clk 0:02:14]} 12... dxe5 {[%clk 0:02:14]} 13.
dxe5 {[%clk 0:02:13.3]} 13... Nh5 {[%clk 0:02:00.1]} 14. Nd5 {[%clk 0:02:02.5]}
14... Qc5+ {[%clk 0:01:58.5]} 15. Be3 {[%clk 0:01:23.5]} 15... fxe3 {[%clk
0:01:53.5]} 16. Rb5 {[%clk 0:01:21.3]} 16... Ng3 {[%clk 0:01:46.2]} 17. Qd3
{[%clk 0:00:59]} 17... e2+ {[%clk 0:01:44.1]} 18. Rf2 {[%clk 0:00:54.7]} 18...
Nxe5 {[%clk 0:01:27.1]} 19. Rxc5 {[%clk 0:00:43.3]} 19... Nxd3 {[%clk
0:00:51.6]} 20. Nxc7+ {[%clk 0:00:34.5]} 20... Kf8 {[%clk 0:00:46.5]} 21. Bxd3
{[%clk 0:00:01.7]} 21... Bg4 {[%clk 0:00:38.3]} 0-1